bitfinex-derivatives/quotes_ETHF0:USTF0_20250421
["timestamp","ask_amount","ask_price","bid_price","bid_amount"]
[1745200555370,1.7709,1628.5,1628.4,6.23764963]
[1745200555566,1.7709,1628.5,1628.4,2.89644963]
[1745200555768,0.8692,1628.8,1628.6,1.22824]
[1745200555966,2.6401,1628.8,1628.7,3.2078]
[1745200556272,3.86821,1628.8,1628.7,3.2078]
[1745200556669,2.6401,1628.8,1628.7,3.2078]
[1745200557171,2.6401,1628.8,1628.7,5.4718]
[1745200557470,3.86821,1628.8,1628.7,5.4718]
[1745200557774,8.86821,1628.8,1628.7,2.264]
[1745200557967,3.86821,1628.8,1628.7,2.264]
[1745200558168,1.22826,1628.6,1628.5,3.2078]
[1745200558576,1.22834,1628.5,1628.4,0.00922963]
[1745200558772,2.98704,1628.5,1628.4,0.00922963]
[1745200559274,2.98704,1628.5,1628.4,2.27322963]
[1745200560266,1.7587,1628.5,1628.4,2.27322963]
[1745200560875,2.98704,1628.5,1628.4,2.27322963]
[1745200561277,2.98704,1628.5,1628.4,0.00922963]
[1745200565371,0.8692,1628.8,1628.4,5.78632622]
[1745200565576,1.6612,1628.8,1628.7,3.2078]
[1745200566270,1.6612,1628.8,1628.7,6.69999]
[1745200566775,6.5654,1628.9,1628.7,6.69999]
[1745200566970,6.5654,1628.9,1628.8,1.6083]
[1745200567169,0.8524,1628.9,1628.8,1.6083]
[1745200567371,8.10136234,1629.2,1628.8,10.09070164]
[1745200567568,8.10136234,1629.2,1629.0,3.2078]
[1745200567877,9.76256234,1629.2,1629.0,3.2078]
[1745200568077,1.6612,1629.1,1629.0,6.69975]
[1745200568574,7.4459,1629.5,1629.0,11.24606103]
[1745200568875,5.712,1629.5,1629.4,3.2078]
[1745200569066,5.712,1629.5,1629.4,5.4718]
[1745200569272,6.93959,1629.5,1629.4,5.4718]
[1745200569467,8.67479,1629.5,1629.4,5.4718]
[1745200569776,1.7352,1629.5,1629.4,11.69946]
[1745200570076,8.10136234,1629.6,1629.5,1.22759]
[1745200570264,8.10136234,1629.6,1629.5,10.59396961]
[1745200570970,9.6625149,1629.7,1629.6,1.22751]
[1745200571268,9.6625149,1629.7,1629.6,4.43531]
[1745200571469,9.6625149,1629.7,1629.6,8.2078]
[1745200571676,9.6625149,1629.7,1629.6,9.43531]
[1745200572976,1.7352,1629.9,1629.7,1.2274]
[1745200573277,2.96249,1629.9,1629.8,3.2078]
[1745200573679,1.22751,1629.6,1629.5,8.17847961]
[1745200573878,1.22751,1629.6,1629.5,5.4718]
[1745200574083,0.9144,1630.1,1629.5,5.4718]
[1745200574281,1.6693,1629.7,1629.6,3.2078]
[1745200575069,1.6693,1629.7,1629.6,4.43531]
[1745200576580,1.22721,1630.0,1629.7,1.22741]
[1745200576880,2.89651,1630.0,1629.9,3.2078]
[1745200577081,1.6693,1630.0,1629.9,3.2078]
[1745200577479,2.89651,1630.0,1629.7,5.4718]
[1745200577682,1.22736,1629.8,1629.7,2.264]
[1745200577886,1.22751,1629.6,1629.5,3.2078]
[1745200578186,1.22766,1629.4,1629.3,0.00922963]
[1745200578378,6.93666,1629.4,1629.3,0.00922963]
[1745200578584,1.22787,1629.2,1628.8,4.43591]
[1745200578787,0.9349,1629.1,1628.8,3.2078]
[1745200579087,0.9349,1629.1,1629.0,3.2078]
[1745200579088,1.714,1629.1,1629.0,3.2078]
[1745200579679,0.00922963,1629.2,1629.0,4.43574]
[1745200580080,0.00922963,1629.2,1629.1,1.22789]
[1745200581483,0.00922963,1629.2,1629.1,2.27889]
[1745200582188,0.00922963,1629.2,1629.1,1.051]
[1745200582390,0.00922963,1629.2,1629.1,2.27889]
[1745200582578,0.00922963,1629.2,1629.1,3.91209]
[1745200583391,0.00922963,1629.2,1629.1,6.61876961]
[1745200584284,0.00922963,1629.2,1629.1,2.70667961]
[1745200584285,1.23703963,1629.2,1629.1,2.70667961]
[1745200584681,2.30923963,1629.2,1629.1,2.70667961]
[1745200585584,7.30923963,1629.2,1629.1,2.70667961]
[1745200585986,1.22789,1629.1,1629.0,2.264]
[1745200586187,3.89129,1629.1,1628.9,0.00922963]
[1745200586377,1.22796,1629.0,1628.9,0.00922963]
[1745200586577,1.7591,1629.0,1628.9,0.00922963]
[1745200587179,1.7591,1629.0,1628.9,2.27322963]
[1745200588192,1.7591,1629.0,1628.9,3.50126963]
[1745200588378,1.08142963,1629.2,1629.0,1.2279]
[1745200588585,1.7591,1629.1,1629.0,2.9686]
[1745200588779,1.08142963,1629.2,1629.1,1.22789]
[1745200588780,0.00922963,1629.2,1629.1,1.22789]
[1745200589294,0.00922963,1629.2,1629.0,5.4718]
[1745200589494,0.00922963,1629.2,1629.0,6.69974]
[1745200589993,1.75902963,1629.2,1629.0,6.69974]
[1745200590394,0.00922963,1629.2,1629.1,1.22789]
[1745200590592,0.00922963,1629.2,1629.1,3.96719]
[1745200590990,0.00922963,1629.2,1629.1,2.90279]
[1745200591385,1.22731,1629.9,1629.6,1.22747]
[1745200591591,1.7498,1629.7,1629.6,4.43527]
[1745200591889,1.22753,1629.6,1629.4,5.91447961]
[1745200592093,4.2609,1629.9,1629.4,5.4718]
[1745200592094,2.97739,1629.5,1629.4,5.4718]
[1745200592291,2.97739,1629.5,1629.4,2.264]
[1745200593092,1.22767,1629.4,1629.2,3.2078]
[1745200593289,1.7105,1629.4,1629.3,1.22774]
[1745200593591,1.7105,1629.4,1629.3,2.91604]
[1745200593790,2.28372,1629.8,1629.5,1.22756]
[1745200593993,1.7105,1629.6,1629.5,4.43536]
[1745200594194,1.7105,1629.6,1629.5,6.69936]
[1745200594797,1.0563,1629.8,1629.7,1.22744]
[1745200594998,1.0531,1629.9,1629.8,1.22736]
[1745200595190,1.0531,1629.9,1629.7,6.69918]
[1745200595391,1.0531,1629.9,1629.7,5.4718]
[1745200595899,1.0531,1629.9,1629.8,1.22736]
[1745200596093,96.8238,1630.2,1629.7,5.91447961]
[1745200596094,3.2078,1630.2,1629.7,5.91447961]
[1745200596393,7.32462465,1630.3,1630.1,3.2078]
[1745200596599,7.32462465,1630.3,1630.1,4.43493]
[1745200596898,6.09763465,1630.3,1630.1,4.43491]
[1745200597197,6.09763465,1630.3,1630.1,3.2078]
[1745200597393,6.09763465,1630.3,1630.1,4.43488]
[1745200597691,1.7179,1630.2,1629.9,7.14170961]
[1745200597899,1.0465,1630.1,1629.9,7.14173961]
[1745200598096,1.7179,1630.0,1629.9,5.91447961]
[1745200598593,2.94511,1630.0,1629.9,2.70667961]
[1745200598790,3.96981,1630.0,1629.9,2.70667961]
[1745200598991,2.7426,1630.0,1629.9,2.70667961]
[1745200599394,1.22729,1629.9,1629.8,0.00922963]
[1745200599599,1.7612,1629.9,1629.8,0.00922963]
[1745200601594,13.66249,1629.9,1629.8,0.00922963]
[1745200601794,1.22742,1629.8,1629.5,4.43539]
[1745200602099,2.92665,1629.7,1629.5,3.2078]
[1745200602296,2.7219,1629.7,1629.5,3.2078]
[1745200602600,3.94938,1629.7,1629.5,3.2078]
[1745200603204,3.94934,1629.7,1629.5,3.2078]
[1745200604702,2.7219,1629.7,1629.5,3.2078]
[1745200604902,3.94934,1629.7,1629.5,3.2078]
[1745200605695,2.7219,1629.7,1629.4,0.00922963]
[1745200605890,2.7219,1629.7,1629.1,1.0459]
[1745200605891,1.22781,1629.2,1629.1,3.2078]
[1745200606096,5.673,1629.3,1628.8,3.2078]
[1745200606305,1.22801,1629.0,1628.8,3.2078]
[1745200606597,1.7211,1628.9,1628.7,1.6081]
[1745200606996,1.7211,1628.9,1628.7,2.83628]
[1745200607195,2.94919,1628.9,1628.7,3.8721]
[1745200607396,1.22811,1628.8,1628.7,2.264]
[1745200607704,4.02661,1628.8,1628.7,2.264]
[1745200608101,4.02661,1628.8,1628.6,3.21702963]
[1745200608699,1.22819,1628.7,1628.6,3.21702963]
[1745200608901,6.91020963,1629.0,1628.6,3.21702963]
[1745200609096,6.91020963,1629.0,1628.8,3.2078]
[1745200609097,2.89214,1628.9,1628.8,3.2078]
[1745200609504,2.89214,1628.9,1628.6,3.21702963]
[1745200609702,1.22815,1628.8,1628.6,3.21702963]
[1745200609903,2.89229,1628.7,1628.6,3.21702963]
[1745200610205,2.89229,1628.7,1628.6,0.00922963]
[1745200610404,2.89229,1628.7,1628.6,3.21702963]
[1745200610605,2.89229,1628.7,1628.6,2.9519569]
[1745200610904,1.6641,1628.7,1628.6,2.9519569]
[1745200611297,1.6641,1628.7,1628.5,3.9566]
[1745200611497,1.6641,1628.7,1628.6,3.2078]
[1745200613799,1.6641,1628.7,1628.5,5.18488]
[1745200614310,2.89233,1628.7,1628.5,5.18494]
[1745200614506,1.6641,1628.7,1628.5,5.18494]
[1745200614909,2.89229,1628.7,1628.5,5.18494]
[1745200615501,1.6641,1628.7,1628.5,5.18494]
[1745200615697,1.6641,1628.7,1628.6,3.2078]
[1745200616410,1.6641,1628.7,1628.6,4.43606]
[1745200617398,5.68222963,1629.0,1628.6,3.2078]
[1745200617604,5.68222963,1629.0,1628.9,1.22804]
[1745200618007,6.91019963,1629.0,1628.8,4.43586]
[1745200618205,2.97844,1628.9,1628.8,3.2078]
[1745200618506,1.22812,1628.8,1628.6,4.43602]
[1745200618705,1.7504,1628.7,1628.6,4.43602]
[1745200618902,1.7504,1628.7,1628.6,3.2078]
[1745200619101,2.97859,1628.7,1628.6,3.2078]
[1745200619612,1.22834,1628.5,1628.4,0.00922963]
[1745200620206,8.1818,1628.7,1628.4,2.27322963]
[1745200620410,7.1794,1628.7,1628.5,1.22831]
[1745200620712,8.40765,1628.7,1628.5,1.22831]
[1745200620909,7.1794,1628.7,1628.5,1.22831]
[1745200621105,7.1794,1628.7,1628.5,3.49231]
[1745200621311,7.1794,1628.7,1628.5,6.70011]
[1745200621613,7.1794,1628.7,1628.6,1.22826]
[1745200621808,6.66619963,1629.0,1628.8,1.22811]
[1745200622013,1.6252,1628.9,1628.8,1.22811]
[1745200623012,1.6252,1628.9,1628.7,8.43283]
[1745200623216,1.6252,1628.9,1628.8,1.22811]
[1745200623614,1.6252,1628.9,1628.7,6.69993]
[1745200624402,1.6252,1628.9,1628.8,1.22811]
[1745200625916,1.22811,1628.8,1628.7,5.4718]
[1745200626117,2.85329,1628.9,1628.7,3.2078]
[1745200626514,1.6906,1628.8,1628.7,3.2078]
[1745200627815,1.6906,1628.8,1628.6,1.22826]
[1745200628005,1.6906,1628.8,1628.7,3.2078]
[1745200628318,6.59196355,1629.4,1628.8,3.07029]
[1745200628508,6.09763465,1629.4,1629.3,4.43554]
[1745200629014,7.32532465,1629.4,1629.2,1.7152]
[1745200629220,1.753,1629.3,1629.2,5.207]
[1745200629412,1.753,1629.3,1629.2,8.4148]
[1745200630117,2.98074,1629.3,1629.2,5.4718]
[1745200630416,2.98074,1629.3,1629.2,2.264]
[1745200631119,2.98074,1629.3,1629.1,1.22788]
[1745200632021,2.98074,1629.3,1629.0,6.0593]
[1745200632221,1.22782,1629.2,1629.0,4.8314]
[1745200632421,1.7087,1629.1,1629.0,4.8314]
[1745200633016,1.7087,1629.1,1629.0,6.05936]
[1745200633318,6.405,1629.3,1629.1,1.22784]
[1745200633517,8.1137,1629.3,1629.1,2.94634]
[1745200633718,9.34146,1629.3,1629.1,2.94634]
[1745200633918,1.7087,1629.2,1629.1,2.94634]
[1745200634220,1.7087,1629.2,1629.1,2.94639]
[1745200634416,1.7087,1629.2,1629.0,6.69971]
[1745200634821,2.93657,1629.2,1629.0,5.4718]
[1745200635023,1.7087,1629.2,1629.0,5.4718]
[1745200635322,1.754,1629.1,1629.0,3.2078]
[1745200635709,1.754,1629.1,1629.0,4.43576]
[1745200636121,1.754,1629.1,1629.0,3.49196]
[1745200638216,1.754,1629.1,1629.0,1.22796]
[1745200641325,1.754,1629.1,1629.0,4.43576]
[1745200642527,1.754,1629.1,1629.0,3.2078]
[1745200642726,2.98189,1629.1,1629.0,3.2078]
[1745200643024,1.22806,1628.9,1628.8,3.2078]
[1745200643228,6.65706,1628.9,1628.8,3.2078]
[1745200643619,9.30776,1628.9,1628.8,3.2078]
[1745200643820,8.0797,1628.9,1628.8,4.43591]
[1745200644028,8.0797,1628.9,1628.8,3.2078]
[1745200644326,13.0797,1628.9,1628.4,3.21702963]
[1745200644631,1.22834,1628.5,1628.4,0.00922963]
[1745200644825,6.65734,1628.5,1628.4,0.00922963]
[1745200645027,9.86514,1628.5,1628.4,0.00922963]
[1745200645427,11.52194,1628.5,1628.4,0.00922963]
[1745200646127,1.22862,1628.2,1627.9,3.2078]
[1745200646426,1.6568,1628.1,1627.9,4.43657]
[1745200646629,2.88548,1628.1,1627.8,10.659398]
[1745200646831,1.0392,1628.0,1627.8,10.659398]
[1745200647032,1.6568,1627.9,1627.8,10.659398]
[1745200647226,8.31459,1627.9,1627.8,7.95271839]
[1745200647729,7.0858,1627.9,1627.8,7.95271839]
[1745200648026,8.31459,1627.9,1627.8,7.95271839]
[1745200648231,7.0858,1627.9,1627.8,7.95271839]
[1745200648433,8.31459,1627.9,1627.8,7.95271839]
[1745200648733,7.0858,1627.9,1627.8,9.18158839]
[1745200650327,5.429,1627.9,1627.8,9.18158839]
[1745200650722,5.429,1627.9,1627.8,3.93554961]
[1745200650927,6.65779,1627.9,1627.8,2.70667961]
[1745200651232,9.34089,1627.9,1627.8,2.70667961]
[1745200653232,8.1121,1627.9,1627.8,2.70667961]
[1745200653430,9.34089,1627.9,1627.8,2.70667961]
[1745200653731,8.1121,1627.9,1627.8,2.70667961]
[1745200654324,9.34089,1627.9,1627.8,2.70667961]
[1745200654526,8.1121,1627.9,1627.8,2.70667961]
[1745200654723,0.00922963,1628.0,1627.9,1.22879]
[1745200655031,0.00922963,1628.0,1627.9,6.08029]
[1745200655233,0.00922963,1628.0,1627.9,16.05096961]
[1745200656332,8.55374,1628.4,1628.2,1.22855]
[1745200656534,1.7392,1628.3,1628.2,1.22855]
[1745200656836,1.7392,1628.3,1628.1,3.2078]
[1745200657128,1.7392,1628.3,1628.1,4.43642]
[1745200657129,2.96774,1628.3,1628.1,4.43642]
[1745200657531,1.7392,1628.3,1628.1,4.43642]
[1745200658229,1.22857,1628.2,1628.1,3.2078]
[1745200658537,1.22864,1628.1,1628.0,2.264]
[1745200658834,1.22864,1628.1,1627.9,3.2078]
[1745200658835,1.22877,1628.0,1627.7,1.23815963]
[1745200659127,1.22877,1628.0,1627.7,0.00922963]
[1745200659128,2.968,1627.9,1627.7,0.00922963]
[1745200659333,5.202,1627.8,1627.7,0.00922963]
[1745200659528,6.9225,1627.8,1627.7,0.00922963]
[1745200659735,8.15137,1627.8,1627.7,0.00922963]
[1745200660329,1.22932,1627.2,1627.1,13.867198]
[1745200660528,1.22928,1627.3,1627.1,11.16051839]
[1745200661130,1.7205,1627.2,1627.1,7.95271839]
[1745200661324,2.94982,1627.2,1627.1,7.95271839]
[1745200661734,1.7205,1627.2,1627.1,7.95271839]
[1745200661934,1.7205,1627.2,1627.1,11.16051839]
[1745200662136,1.7205,1627.2,1627.1,7.95271839]
[1745200662827,1.7205,1627.2,1627.1,11.16051839]
[1745200663227,1.7205,1627.2,1627.1,3.2078]
[1745200663636,1.7205,1627.2,1627.0,5.18426963]
[1745200663833,1.7205,1627.2,1627.0,3.95482963]
[1745200664139,1.7205,1627.2,1627.0,5.18426963]
[1745200664336,1.7205,1627.2,1627.1,3.2078]
[1745200664837,1.7205,1627.2,1627.0,3.95482963]
[1745200665234,0.00922963,1627.3,1627.1,5.91447961]
[1745200665443,0.00922963,1627.3,1627.2,1.676]
[1745200666138,1.73892963,1627.3,1627.2,3.94]
[1745200666334,2.96817963,1627.3,1627.2,2.264]
[1745200667436,1.2294,1627.1,1627.0,0.00922963]
[1745200667737,6.4334,1627.1,1627.0,0.00922963]
[1745200668344,16.3709,1627.1,1627.0,2.09971852]
[1745200668640,13.1631,1627.1,1627.0,2.09971852]
[1745200668841,16.3709,1627.1,1627.0,2.09971852]
[1745200669340,1.22965,1626.8,1626.5,7.65587961]
[1745200669540,6.8401,1626.7,1626.6,0.00922963]
[1745200669936,5.204,1626.7,1626.6,0.00922963]
[1745200670141,6.8401,1626.7,1626.6,0.00922963]
[1745200671042,8.0698,1626.7,1626.6,0.00922963]
[1745200672342,9.0963,1626.7,1626.6,0.00922963]
[1745200673838,8.0698,1626.7,1626.6,0.00922963]
[1745200676045,11.2776,1626.7,1626.6,0.00922963]
[1745200676247,8.0698,1626.7,1626.6,0.00922963]
[1745200676648,6.8401,1626.7,1626.6,0.00922963]
[1745200676840,8.0698,1626.7,1626.6,1.66422963]
[1745200678043,6.4337,1626.7,1626.6,0.00922963]
[1745200678946,5.204,1626.7,1626.6,0.00922963]
[1745200679339,6.8579,1626.7,1626.6,1.74702963]
[1745200679740,3.07357,1627.1,1626.6,1.74702963]
[1745200679741,0.51106765,1627.3,1626.6,9.95482963]
[1745200679940,0.00922963,1627.3,1627.2,3.2078]
[1745200680254,1.23847963,1627.3,1627.2,5.4718]
[1745200680437,1.23847963,1627.3,1627.2,2.264]
[1745200680643,6.29147963,1627.3,1627.2,2.264]
[1745200680845,7.94537963,1627.3,1627.2,2.264]
[1745200681546,2.89237963,1627.3,1627.2,2.264]
[1745200681746,7.94537963,1627.3,1627.2,2.264]
[1745200681946,2.89237963,1627.3,1627.2,2.264]
[1745200682252,7.94537963,1627.3,1627.2,2.264]
[1745200682438,6.71612963,1627.3,1627.2,2.264]
[1745200682849,7.94537963,1627.3,1627.2,2.264]
[1745200684048,7.94537963,1627.3,1627.2,5.4718]
[1745200686653,6.71612963,1627.3,1627.2,5.4718]
[1745200686849,7.94537963,1627.3,1627.2,5.4718]
[1745200687046,6.71612963,1627.3,1627.0,3.2078]
[1745200687357,1.2294,1627.1,1627.0,3.2078]
[1745200688153,1.2294,1627.1,1627.0,5.4718]
[1745200689057,1.22937,1627.2,1627.0,5.4718]
[1745200689257,1.6858,1627.1,1627.0,5.4718]
[1745200689860,1.6858,1627.1,1627.0,7.2577]
[1745200692153,1.6858,1627.1,1627.0,8.48717]
[1745200692852,1.6858,1627.1,1627.0,7.2577]
[1745200693053,1.6858,1627.1,1627.0,9.26561849]
[1745200693654,1.6858,1627.1,1627.0,8.03614849]
[1745200693858,1.6858,1627.1,1627.0,8.03619573]
[1745200694467,1.6858,1627.1,1627.0,9.26566573]
[1745200695068,1.6858,1627.1,1627.0,9.2656854]
[1745200695256,1.6858,1627.1,1627.0,8.48717]
[1745200695461,1.6858,1627.1,1627.0,9.2658073]
[1745200695666,5.06222963,1627.3,1627.2,1.22932]
[1745200695866,5.06222963,1627.3,1627.2,3.2078]
[1745200696069,6.29147963,1627.3,1627.2,5.4718]
[1745200696265,7.96807963,1627.3,1627.2,5.4718]
[1745200697067,11.34862055,1628.1,1627.3,3.07312]
[1745200697369,11.34862055,1628.1,1627.2,16.75291934]
[1745200697370,1.22887,1627.8,1627.7,3.2078]
[1745200697669,1.22896,1627.7,1627.5,4.8484]
[1745200697874,1.6766,1627.6,1627.5,6.07749]
[1745200698064,1.6766,1627.6,1627.5,6.85505176]
[1745200698371,1.6766,1627.6,1627.5,9.11904188]
[1745200698668,1.6766,1627.6,1627.5,9.11861494]
[1745200699966,1.6766,1627.6,1627.5,9.11829287]
[1745200700471,1.6766,1627.6,1627.5,9.1180164]
[1745200701173,1.6766,1627.6,1627.5,6.70089]
[1745200706379,1.6766,1627.6,1627.5,7.47848968]
[1745200706971,1.6766,1627.6,1627.5,6.70089]
[1745200707481,6.09763465,1628.4,1628.3,1.22849]
[1745200707775,6.09763465,1628.4,1628.3,3.2078]
[1745200707974,12.32605465,1628.4,1628.3,3.2078]
[1745200708176,17.53405465,1628.4,1628.3,3.2078]
[1745200708779,19.57724055,1628.4,1628.3,3.2078]
[1745200709174,19.98892055,1628.4,1628.3,3.2078]
[1745200709372,14.98892055,1628.4,1628.3,4.43629]
[1745200710772,14.98892055,1628.4,1628.3,3.2078]
[1745200714282,6.8481,1628.4,1628.3,3.2078]
[1745200715380,8.07652,1628.4,1628.3,3.2078]
[1745200717191,15.34052,1628.4,1628.3,3.2078]
[1745200717981,10.34052,1628.4,1628.3,3.2078]
[1745200718182,8.07652,1628.4,1628.3,3.2078]
[1745200722684,8.07652,1628.4,1628.3,4.43629]
[1745200722685,6.8481,1628.4,1628.3,4.43629]
[1745200723083,1.6401,1628.4,1628.3,4.43629]
[1745200723382,11.20022963,1628.5,1628.4,1.22842]
[1745200723582,12.81122963,1628.5,1628.4,2.87592]
[1745200723983,6.82722963,1628.5,1628.4,2.87592]
[1745200724183,6.82722963,1628.5,1628.4,5.13992]
[1745200724591,0.00922963,1628.5,1628.4,10.13992]
[1745200726785,0.00922963,1628.5,1628.4,2.264]
[1745200726991,1.23756963,1628.5,1628.4,2.264]
[1745200727193,1.22842,1628.4,1628.3,3.21702963]
[1745200727392,8.04262,1628.4,1628.3,3.21702963]
[1745200729983,8.04262,1628.4,1628.3,0.00922963]
[1745200730885,8.04262,1628.4,1628.3,3.21702963]
[1745200731891,2.83662,1628.4,1628.3,3.21702963]
[1745200733894,1.22842,1628.4,1628.3,3.21702963]
[1745200734090,14.3078393,1630.0,1628.5,3.2078]
[1745200734091,8.14082055,1629.0,1628.5,3.2078]
[1745200734287,8.14082055,1629.0,1628.9,3.2078]
[1745200734591,9.85092055,1629.0,1628.9,3.2078]
[1745200734792,11.07888055,1629.0,1628.9,3.2078]
[1745200734994,16.28488055,1629.0,1628.9,3.2078]
[1745200736101,16.28488055,1629.0,1628.9,5.4718]
[1745200736600,8.14082055,1629.0,1628.9,5.4718]
[1745200736796,13.34682055,1629.0,1628.9,5.4718]
[1745200737288,15.06292055,1629.0,1628.9,5.4718]
[1745200738593,6.9221,1629.0,1628.9,5.4718]
[1745200739101,8.15006,1629.0,1628.9,3.2078]
[1745200739299,6.9221,1629.0,1628.9,3.2078]
[1745200740600,6.9221,1629.0,1628.9,4.43584]
[1745200740795,6.9221,1629.0,1628.9,6.14854]
[1745200741097,6.9221,1629.0,1628.9,8.41254]
[1745200741297,6.9221,1629.0,1628.9,7.1845]
[1745200741495,5.206,1629.0,1628.9,8.41254]
[1745200742997,5.206,1629.0,1628.9,9.18652214]
[1745200743297,5.206,1629.0,1628.9,13.41254]
[1745200744302,6.43396,1629.0,1628.9,7.1845]
[1745200744493,6.8215,1629.0,1628.9,11.11921961]
[1745200745002,8.04946,1629.0,1628.9,9.89117961]
[1745200745203,6.8215,1629.0,1628.9,9.89117961]
[1745200745405,6.8215,1629.0,1628.9,11.11921961]
[1745200756107,8.04946,1629.0,1628.9,8.17847961]
[1745200756313,9.10516,1629.0,1628.9,5.4718]
[1745200757109,1.22808,1628.9,1628.7,3.2078]
[1745200757311,2.84078,1628.9,1628.7,3.2078]
[1745200757509,1.22811,1628.8,1628.7,3.2078]
[1745200757811,2.84081,1628.8,1628.7,3.2078]
[1745200764208,2.84081,1628.8,1628.7,5.4718]
[1745200765110,2.84081,1628.8,1628.7,3.2078]
[1745200765616,1.22823,1628.7,1628.6,3.2078]
[1745200765911,6.8379,1628.7,1628.6,3.2078]
[1745200766110,8.06609,1628.7,1628.6,3.2078]
[1745200768913,2.95809,1628.7,1628.6,3.2078]
[1745200769115,7.83109,1628.7,1628.6,3.2078]
[1745200770520,6.12356774,1629.1,1629.0,4.43576]
[1745200770722,8.14082055,1629.3,1629.2,1.22781]
[1745200770915,8.14082055,1629.3,1629.2,3.2078]
[1745200771113,9.86762055,1629.3,1629.2,5.4718]
[1745200772619,1.7268,1629.3,1629.2,5.4718]
[1745200773121,1.7268,1629.3,1629.2,3.2078]
[1745200773420,1.7268,1629.3,1629.2,4.43561]
[1745200774012,1.7268,1629.3,1629.2,3.2078]
[1745200774217,1.7268,1629.3,1629.2,5.4718]
[1745200774615,1.7268,1629.3,1629.2,6.69961]
[1745200774817,1.7268,1629.3,1629.2,8.31711]
[1745200777518,1.7268,1629.3,1629.2,7.0893]
[1745200777717,1.7268,1629.3,1629.2,8.31711]
[1745200778117,1.7268,1629.3,1629.2,6.05311]
[1745200778622,1.7268,1629.3,1629.2,4.43561]
[1745200779421,1.7268,1629.3,1629.2,3.2078]
[1745200779620,1.7268,1629.3,1629.2,4.43561]
[1745200780440,1.7268,1629.3,1629.2,3.2078]
[1745200780628,1.7268,1629.3,1629.2,4.43561]
[1745200782031,2.95454,1629.3,1629.2,3.2078]
[1745200782621,7.95454,1629.3,1629.2,3.2078]
[1745200782928,2.95454,1629.3,1629.2,3.2078]
[1745200786930,1.7268,1629.3,1628.9,5.66945961]
[1745200787233,2.87372,1629.2,1628.9,7.93345961]
[1745200787432,6.5169,1629.1,1628.9,7.93345961]
[1745200787634,1.6459,1629.0,1628.9,7.93345961]
[1745200787826,1.6459,1629.0,1628.9,11.14125961]
[1745200788833,1.6459,1629.0,1628.9,7.93345961]
[1745200789137,1.6459,1629.0,1628.9,11.14125961]
[1745200790735,6.09889,1629.1,1628.9,11.14125961]
[1745200790936,6.09889,1629.1,1629.0,1.6165]
[1745200791433,4.871,1629.1,1629.0,2.84446]
[1745200792228,6.09889,1629.1,1629.0,3.8805]
[1745200792530,4.871,1629.1,1629.0,3.8805]
[1745200792730,6.09889,1629.1,1629.0,5.10846]
[1745200792937,7.87549,1629.1,1629.0,5.10846]
[1745200793136,6.6476,1629.1,1629.0,5.10846]
[1745200793640,1.22777,1629.3,1629.1,1.22784]
[1745200793831,2.84017,1629.3,1629.2,4.9246]
[1745200794033,2.84017,1629.3,1629.2,3.2078]
[1745200795137,1.6124,1629.3,1629.2,3.2078]
[1745200795343,2.84014,1629.3,1629.2,3.2078]
[1745200795937,1.6124,1629.3,1629.2,3.2078]
[1745200799541,6.09869,1629.4,1629.2,4.43561]
[1745200799743,1.7847,1629.3,1629.2,4.43561]
[1745200800335,4.871,1629.4,1629.3,1.22774]
[1745200800538,4.851,1629.7,1629.3,6.55526469]
[1745200800735,6.5285,1629.7,1629.6,3.2078]
[1745200800935,4.851,1629.7,1629.6,3.2078]
[1745200802237,6.07844,1629.7,1629.6,3.2078]
[1745200802442,11.07844,1629.7,1629.6,3.2078]
[1745200803248,6.07844,1629.7,1629.6,3.2078]
[1745200803438,4.851,1629.7,1629.6,3.2078]
[1745200804143,1.22771,1629.4,1629.2,2.70667961]
[1745200804443,4.85,1629.4,1629.1,3.21702963]
[1745200804640,4.85,1629.4,1629.1,4.44488963]
[1745200804834,6.07769,1629.4,1629.1,4.44488963]
[1745200805038,1.22777,1629.3,1629.1,3.21702963]
[1745200805241,4.85,1629.7,1629.1,3.21702963]
[1745200805539,0.60270156,1629.8,1629.5,1.22758]
[1745200805740,7.0161,1629.9,1629.5,2.70667961]
[1745200805941,3.06741,1630.4,1629.7,3.2078]
[1745200805942,10.16419184,1630.3,1629.7,3.2078]
[1745200806133,10.16419184,1630.3,1629.9,3.2078]
[1745200806337,10.16419184,1630.3,1630.1,3.2078]
[1745200806741,10.16419184,1630.3,1630.1,6.1415]
[1745200806945,10.16419184,1630.3,1630.1,4.9144]
[1745200807143,10.16419184,1630.3,1630.1,6.14151]
[1745200807440,10.16419184,1630.3,1630.2,1.22706]
[1745200807641,10.16419184,1630.3,1630.2,1.7066]
[1745200808045,10.16419184,1630.3,1630.2,2.93366]
[1745200808248,6.07685,1630.5,1630.2,4.01856]
[1745200808546,4.85,1630.4,1630.3,1.7066]
[1745200809448,2.264,1630.6,1630.3,4.9144]
[1745200809747,10.3218,1630.6,1630.3,6.14135]
[1745200809937,11.4384,1630.6,1630.3,4.9144]
[1745200810249,5.9666,1630.6,1630.3,4.9144]
[1745200810457,5.9666,1630.6,1630.4,1.6454]
[1745200810645,13.04603958,1630.7,1630.5,1.22679]
[1745200810842,17.89603958,1630.7,1630.6,2.87216]
[1745200811047,12.42819184,1630.7,1630.6,2.87216]
[1745200811240,12.42819184,1630.7,1630.6,9.00746]
[1745200811241,10.16419184,1630.7,1630.6,9.00746]
[1745200811441,1.58019184,1630.7,1630.6,9.00746]
[1745200812947,3.4999028,1631.0,1630.9,1.22653]
[1745200813342,0.2921028,1631.0,1630.9,4.43433]
[1745200814147,0.2921028,1631.0,1630.9,9.43433]
[1745200814540,0.2921028,1631.0,1630.9,12.14100961]
[1745200814741,1.58019184,1631.3,1631.2,1.22631]
[1745200814949,1.58019184,1631.3,1631.2,9.43411]